Cogmind - Beta 10.2 @@@ ROGUE MODE // 2021.06.07 @ 22:39:32 Player: Plexion Result: Destroyed by Z-Imprinter with Zionite Laser-M Performance ------------- Evolutions (4) 2000 Regions Visited (15) 3000 Robots Destroyed (83) 415 Value Destroyed (2285) 2285 Prototype IDs (241) 4820 Alien Tech Used (0) 0 Bonus (2755) 2755 TOTAL SCORE: 15275 Bonus ------- Aligned with FarCom 300 Met Data Miner 300 Used Data Conduit 3000 Friendly Fire -845 Cogmind --------- Core Integrity 0/850 Matter 66/300 Energy 63/100 System Corruption 0% Temperature Cool (9) Movement Core (1100) Ox21 Location -6/Deep Caves Parts ------- > --- POWER (1) -------- (None) > --- PROPULSION (4) --- (None) > --- UTILITY (7) ------ High-capacity Storage Unit High-capacity Storage Unit > --- WEAPON (3) ------- (None) > --- INVENTORY (20) --- Medium Storage Unit Advanced Sensor Array Improved Terrain Scan Processor Medium Insulated Plating Medium Insulated Plating System Mapper Mobile Refinery Mk. CCLXVII Improved EM Pulse Cannon Improved EM Pulse Cannon Gauss Rifle Coil Gun Bore Cannon Proton Missile Launcher Peak State ------------ > --- POWER ------------ Micro Nuclear Core > --- PROPULSION ------- Advanced Treads Advanced Treads Improved Medium Treads > --- UTILITY ---------- Advanced Heat Sink High-capacity Storage Unit High-capacity Storage Unit Layered Light Armor Plating Layered Light Armor Plating Layered Light Armor Plating Layered Light Armor Plating > --- WEAPON ----------- Wave Gun Wave Gun Wave Gun > --- INVENTORY -------- Medium Storage Unit Humpback Advanced Sensor Array Improved Terrain Scan Processor Medium Insulated Plating Medium Insulated Plating System Mapper Mobile Refinery Mk. CCLXVII Improved EM Pulse Cannon Improved EM Pulse Cannon Gauss Rifle Precision Assault Rifle Coil Gun KE Penetrator Bore Cannon Proton Missile Launcher Field Lobotomy Kit Impact Mace [Rating: 64] Favorites ----------- Power Micro Nuclear Core Engine Ion Engine Power Core Micro Nuclear Core Propulsion Light Treads Treads Light Treads Utility Layered Light Armor Plating Device Advanced Heat Sink Storage High-capacity Storage Unit Processor Armor Integrity Analyzer Protection Layered Light Armor Plating Weapon Precision Assault Rifle Energy Gun Medium Laser Energy Cannon Improved EM Pulse Cannon Ballistic Gun Precision Assault Rifle Ballistic Cannon Bore Cannon Launcher Missile Launcher Special Weapon Field Lobotomy Kit Impact Weapon Impact Mace Slashing Weapon Ripper Build | -11 -10 -10 -10 -9 -8 -7 -7 -7 -7 -6 -6 -6 -6 -6 -6 ------- Run | Scr Mat Min Exi Min Mat Fac Low Low Dat Pro Fac Low Low Zio Dee Slots Evolved 8 | . . . . . 4 2 . . . . 2 . . . . Power . | . . . . . . . . . . . . . . . . Propulsion 2 | . . . . . 1 1 . . . . . . . . . Utility 5 | . . . . . 3 1 . . . . 1 . . . . Weapon 1 | . . . . . . . . . . . 1 . . . . Parts Attached 123 | 7 9 3 2 . 26 24 7 4 3 2 13 1 . 6 16 Power 4 | 1 . . . . 1 . 1 1 . . . . . . . Engine 1 | 1 . . . . . . . . . . . . . . . Core 3 | . . . . . 1 . 1 1 . . . . . . . Reactor . | . . . . . . . . . . . . . . . . Propulsion 23 | 2 3 . . . 7 8 2 . . . 1 . . . . Treads 23 | 2 3 . . . 7 8 2 . . . 1 . . . . Leg . | . . . . . . . . . . . . . . . . Wheel . | . . . . . . . . . . . . . . . . Hover . | . . . . . . . . . . . . . . . . Flight . | . . . . . . . . . . . . . . . . Utility 40 | 1 2 . 2 . 13 4 2 2 . 1 5 1 . 2 5 Device 6 | . . . . . . . . . . . 1 1 . 2 2 Storage 7 | 1 1 . 2 . 1 . . 1 . . . . . . 1 Processor 2 | . . . . . . . . . . 1 1 . . . . Hackware . | . . . . . . . . . . . . . . . . Protection 25 | . 1 . . . 12 4 2 1 . . 3 . . . 2 Artifact . | . . . . . . . . . . . . . . . . Weapon 56 | 3 4 3 . . 5 12 2 1 3 1 7 . . 4 11 Energy Gun 10 | 3 1 . . . . . . . . . 1 . . 3 2 Energy Cannon 1 | . . . . . . . . . . . . . . . 1 Ballistic Gun 19 | . 1 . . . 3 6 . . 1 . 4 . . . 4 Ballistic Cannon 2 | . . . . . . . . . . . . . . 1 1 Launcher 9 | . 1 2 . . 2 1 1 . . 1 . . . . 1 Special Weapon 3 | . . . . . . . . . 2 . . . . . 1 Impact Weapon 10 | . . . . . . 5 1 1 . . 2 . . . 1 Slashing Weapon 2 | . 1 1 . . . . . . . . . . . . . Piercing Weapon . | . . . . . . . . . . . . . . . . Special Melee Weapon . | . . . . . . . . . . . . . . . . Unidentified Prototypes 3 | . . . . . . 2 . . . . . . . 1 . Parts Lost 27 | . 1 . . . . 4 2 1 . 1 1 . 1 . 16 Power 2 | . . . . . . . 1 . . . . . . . 1 Propulsion 7 | . . . . . . 1 1 . . . 1 . 1 . 3 Utility 10 | . . . . . . 2 . 1 . 1 . . . . 6 Weapon 8 | . 1 . . . . 1 . . . . . . . . 6 Highest Loss Streak 16 | . 1 . . . . 4 1 1 . 1 1 . 1 . 16 Average Slot Usage (%) 95 | . 91 100 99 100 97 97 95 99 99 96 84 100 96 93 71 Engine 4 | . 14 14 14 14 6 . . . . . . . . . . Core 4 | . . . . . 2 7 6 7 7 7 6 6 6 6 4 Treads 26 | . 27 28 28 28 25 29 30 30 30 30 22 26 22 20 14 Device 3 | . . . . . . . . . . . 3 12 13 13 5 Storage 16 | . 15 28 27 28 18 15 15 15 15 15 13 13 13 13 13 Processor 1 | . . . . . . . . . . 5 3 6 6 6 1 Protection 17 | . 5 . . . 26 28 25 29 30 21 15 13 13 13 15 Energy Gun 2 | . 14 6 . . . . . . . . . . . . 6 Ballistic Gun 7 | . 2 . . . 7 7 7 7 4 7 17 13 13 10 6 Launcher 2 | . 6 7 14 14 1 . 1 4 . 3 . . . . . Impact Weapon 3 | . . . . . . 5 5 2 7 3 . 6 6 5 . Slashing Weapon 3 | . 4 14 14 14 9 . . . . . . . . . . Naked Turns . | . . . . . . . . . . . . . . . . Heaviest Build 104 | 13 19 22 30 30 74 71 72 96 95 92 95 94 91 96 104 Greatest Support 94 | 40 40 40 40 40 60 94 84 84 84 84 94 94 94 74 74 Greatest Overweight (x) 1 | . . . . . 1 1 . 1 1 1 1 . 1 1 1 Average Overweight (x) . | . . . . . . . . . 1 1 . . . 1 1 Largest Inventory Capacity 40 | 6 8 8 12 12 16 16 16 20 20 20 20 20 20 20 40 Average Capacity 15 | 5 6 8 10 12 14 16 16 19 20 20 20 20 20 20 22 Most Carried 20 | 2 8 8 11 11 16 16 14 13 13 13 17 20 20 20 20 Average Carried 13 | 1 5 8 8 11 13 15 12 12 12 12 13 18 20 19 17 Final Capacity 20 | 6 8 8 12 12 16 16 16 20 20 20 20 20 20 20 20 Final Carried 20 | 2 8 8 11 11 16 15 11 13 12 13 17 20 20 20 13 Class Distribution -------------------- 56% | Mutant 35% | Hauler-Mutant 5% | Hauler-Tank Dominant Class ---------------- Mutant | -10/Materials Mutant | -10/Mines Mutant | -10/Exiles Mutant | -9/Mines Mutant | -8/Materials Mutant | -7/Factory Mutant | -7/Lower Caves Hauler-Mutant | -7/Lower Caves Hauler-Mutant | -7/Data Miner Hauler-Mutant | -6/Proximity Caves Hauler-Tank | -6/Factory Hauler-Mutant | -6/Lower Caves Hauler-Mutant | -6/Lower Caves Hauler-Mutant | -6/Zion Hauler-Tank | -6/Deep Caves Resources | -11 -10 -10 -10 -9 -8 -7 -7 -7 -7 -6 -6 -6 -6 -6 -6 ----------- Run | Scr Mat Min Exi Min Mat Fac Low Low Dat Pro Fac Low Low Zio Dee Matter Collected 2443 | 229 205 265 116 98 353 206 243 188 . 242 233 10 . 20 35 Remotely . | . . . . . . . . . . . . . . . . Salvage Created 2414 | . 364 64 . 87 662 475 139 139 . 190 236 . . . 58 Parts 114 | . 27 2 . 17 30 14 3 4 . 5 7 . . . 5 Haulers Intercepted 5 | . 2 . . . 3 . . . . . . . . . . Recyclers Shooed 3 | . 2 1 . . . . . . . . . . . . . Parts Field Recycled . | . . . . . . . . . . . . . . . . Retrieved Matter . | . . . . . . . . . . . . . . . . Parts Self-Destructed 32 | . . . . . . . 2 6 . 4 . . 13 7 . Prevented 12 | . . . . . . . 4 1 . 7 . . . . . Kills | -11 -10 -10 -10 -9 -8 -7 -7 -7 -7 -6 -6 -6 -6 -6 -6 ------- Run | Scr Mat Min Exi Min Mat Fac Low Low Dat Pro Fac Low Low Zio Dee Combat Hostiles Destroyed 66 | . 14 8 . 7 12 10 3 4 . 3 4 . . . 1 Melee 8 | . . . . . 7 1 . . . . . . . . . Guns 8 | . . . . . . 3 . 1 . . 4 . . . . Cannons 1 | . . . . . . . . . . . . . . . 1 AOE 42 | . 14 8 . 7 5 2 2 3 . 1 . . . . . Classes Destroyed 16 | . 9 1 . . 3 . 1 1 . . . . . . 1 Worker 5 | . 1 1 . 1 2 . . . . . . . . . . Builder 1 | . 1 . . . . . . . . . . . . . . Tunneler 1 | . 1 . . . . . . . . . . . . . . Hauler 5 | . 2 . . . 3 . . . . . . . . . . Recycler 3 | . 2 . . 1 . . . . . . . . . . . Minesweeper 1 | . . . . . . . . 1 . . . . . . . Operator 2 | . 1 . . . . 1 . . . . . . . . . Watcher 4 | . 2 . . . 1 1 . . . . . . . . . Swarmer 24 | . 9 . . 7 . . 2 4 . 2 . . . . . Grunt 25 | . 5 2 . . 7 6 . . . 1 4 . . . . Brawler 1 | . . . . . 1 . . . . . . . . . . Sentry 5 | . . . . . 3 2 . . . . . . . . . Hunter 3 | . . . . . 1 2 . . . . . . . . . Programmer 1 | . . . . . . . 1 . . . . . . . . Z-Light 1 | . . . . . . . . . . . . . . . 1 Decomposer 2 | . . . . . . . 2 . . . . . . . . Packrat 1 | . . . . . . . . . . 1 . . . . . Assembled 6 | . . 6 . . . . . . . . . . . . . Best Kill Streak 9 | . 6 3 . 9 7 4 1 4 . 2 2 . . . 1 Combat Bots Only 7 | . 6 3 . 7 4 4 1 3 . 2 2 . . . 1 Max Kills in Single Turn 4 | . 3 1 . 4 3 2 1 3 . 1 1 . . . 1 Gunslinging . | . . . . . . . . . . . . . . . . Exploded 4 | . 2 1 . 4 1 2 1 2 . 1 . . . . . Melee 1 | . . . . . 1 1 . . . . . . . . . Uniques/NPCs Destroyed 1 | . . . . . . . . . . 1 . . . . . Data Miner (-6/Proximity Caves) Combat | -11 -10 -10 -10 -9 -8 -7 -7 -7 -7 -6 -6 -6 -6 -6 -6 -------- Run | Scr Mat Min Exi Min Mat Fac Low Low Dat Pro Fac Low Low Zio Dee Damage Taken 8367 | . 247 140 . 96 548 2786 411 84 . 186 132 . 291 . 3446 Core 1190 | . 51 48 . 10 . 190 13 . . . 37 . . . 841 Absorbed by Shields . | . . . . . . . . . . . . . . . . Core Remaining (%) 81 | 100 . . . 56 100 . . . . 71 . . . . . Volleys Fired 157 | . 39 13 . 6 11 27 5 7 1 23 9 . . . 16 Largest 3 | . 2 1 . 1 1 2 1 1 1 1 3 . . . 3 Hottest 243 | . 90 36 . 36 36 56 39 39 . 39 86 . . . 243 Shots Fired 224 | . 55 13 . 6 11 45 6 7 1 23 27 . . . 30 Gun 146 | . 31 . . . 5 41 1 2 . 15 27 . . . 24 Cannon 2 | . . . . . . . . . . . . . . . 2 Launcher 71 | . 24 13 . 6 6 4 5 5 . 8 . . . . . Special 5 | . . . . . . . . . 1 . . . . . 4 Kinetic 117 | . 12 . . . 5 41 1 2 . 15 27 . . . 14 Thermal 28 | . 16 . . . . . . . . . . . . . 12 Explosive 53 | . 24 13 . 6 6 4 . . . . . . . . . Electromagnetic 21 | . 3 . . . . . 5 5 . 8 . . . . . Robot Hit Streak 23 | . 14 4 . 1 11 13 8 1 2 10 23 . . . 4 Robot Miss Streak 7 | . 3 5 . 4 1 4 1 1 . 2 1 . . . 7 Penetration Max 1 | . . . . . . . . . . . 1 . . . . Secondary Targets 1 | . . . . . . . . . . . 1 . . . . Max Gunslinging Chain 1 | . . . . . . . . . . . 1 . . . . Shots Hit Robots 237 | . 33 11 . 1 39 69 16 2 1 17 25 . 4 . 19 Core Hits 140 | . 33 13 . 10 27 25 5 7 . 7 9 . . . 4 Critical Hits 4 | . . 1 . . 1 . . . . . 1 . . . 1 Critical Kills 1 | . . . . . . . . . . . . . . . 1 Critical Parts Destroyed 3 | . . 1 . . 1 . . . . . 1 . . . . Melee Attacks 138 | . 7 3 . . 33 54 14 . . . 2 2 6 7 10 Impact 93 | . . . . . . 52 14 . . . 2 2 6 7 10 Slashing 45 | . 7 3 . . 33 2 . . . . . . . . . Piercing . | . . . . . . . . . . . . . . . . Sneak Attacks 20 | . 5 3 . . 9 1 2 . . . . . . . . Combat Hostiles . | . . . . . . . . . . . . . . . . Follow-up Attacks . | . . . . . . . . . . . . . . . . Damage Inflicted 11168 | . 2497 854 . 665 2833 1651 689 328 . 495 625 . 157 . 374 Guns 1775 | . 254 . . . 50 359 . 18 . 284 625 . . . 185 Cannons 13 | . . . . . . . . . . . . . . . 13 Explosions 5132 | . 1873 584 . 665 1060 289 140 310 . 211 . . . . . Melee 4239 | . 370 270 . . 1723 1001 542 . . . . . 157 . 176 Ramming 9 | . . . . . . 2 7 . . . . . . . . Kinetic 1467 | . 75 . . . 50 359 . 18 . 284 625 . . . 56 Thermal 1087 | . 836 . . . . . . 109 . . . . . . 142 Explosive 3774 | . 1176 584 . 665 1060 289 . . . . . . . . . Electromagnetic 592 | . 40 . . . . . 140 201 . 211 . . . . . Impact 1876 | . . . . . . 1001 542 . . . . . 157 . 176 Slashing 2363 | . 370 270 . . 1723 . . . . . . . . . . Piercing . | . . . . . . . . . . . . . . . . Highest Corruption 7 | . 2 2 2 2 . 4 7 7 7 7 2 2 2 2 . Average Corruption 3 | . 2 2 2 2 . 3 6 7 7 7 2 2 2 2 . Corruption Purged . | . . . . . . . . . . . . . . . . Effects 94 | . 3 4 8 . . 16 13 15 5 16 1 3 8 2 . Message Errors 30 | . 1 2 3 . . 4 2 3 4 4 . 2 5 . . Matter Fused 16 | . . . . . . 4 2 4 . 6 . . . . . Heat Flow Errors 18 | . 1 . 3 . . 1 3 5 . 2 . . 2 1 . Energy Discharges 7 | . . 1 1 . . . 2 . . . 1 1 1 . . Parts Rejected 1 | . . . . . . . . 1 . . . . . . . Data Loss (minor) 12 | . 1 1 1 . . 1 2 2 1 2 . . . 1 . Data Loss (major) 2 | . . . . . . . . . . 2 . . . . . Misfires 1 | . . . . . . . 1 . . . . . . . . Targeting Errors 7 | . . . . . . 6 1 . . . . . . . . Overload Shots . | . . . . . . . . . . . . . . . . Overflow Damage 1243 | . 330 91 . 25 270 227 265 35 . . . . . . . Projectiles . | . . . . . . . . . . . . . . . . Explosions 327 | . 253 . . 25 11 . 3 35 . . . . . . . Melee 916 | . 77 91 . . 259 227 262 . . . . . . . . Knockbacks 7 | . . . . . . . 3 . . . . . 3 . 1 Impact 7 | . . . . . . . 3 . . . . . 3 . 1 Kinetic . | . . . . . . . . . . . . . . . . Secondary . | . . . . . . . . . . . . . . . . Self-Inflicted Damage 170 | . 64 15 . 66 . . 1 . . 24 . . . . . Shots 7 | . 2 1 . 2 . . 1 . . 1 . . . . . Rammed 3 | . . . . . . 1 2 . . . . . . . . Targets Rammed 3 | . . . . . . 1 2 . . . . . . . . Kicked . | . . . . . . . . . . . . . . . . Crushed . | . . . . . . . . . . . . . . . . Highest Temperature 538 | . 107 8 198 . 65 320 293 257 . 179 94 . 257 215 538 Average Temperature 105 | . 37 4 83 . 26 124 113 96 . 46 42 . 112 124 250 Received Heat Transfer 2139 | . 48 24 . . 171 714 . . . 63 63 . 102 . 954 Effects 14 | . . . . . . 4 . . . . . . . . 10 Shutdowns 3 | . . . . . . 1 . . . . . . . . 2 Energy Bleed 2 | . . . . . . 1 . . . . . . . . 1 Interference 1 | . . . . . . 1 . . . . . . . . . Matter Decay 4 | . . . . . . 1 . . . . . . . . 3 Short Circuit 3 | . . . . . . . . . . . . . . . 3 Damage (minor) 1 | . . . . . . . . . . . . . . . 1 Siege Activations . | . . . . . . . . . . . . . . . . Robots Corrupted 2 | . . . . . . . . . . 2 . . . . . Combat Hostiles 2 | . . . . . . . . . . 2 . . . . . Parts Fried 9 | . . . . . . 6 2 1 . . . . . . . Impact Corruptions 26 | . . . . . . 11 15 . . . . . . . . Robots Melted . | . . . . . . . . . . . . . . . . Combat Hostiles . | . . . . . . . . . . . . . . . . Parts Melted 2 | . 2 . . . . . . . . . . . . . . Heat Transferred 1061 | . 857 . . . . . . 150 . . . . . . 54 Parts Sabotaged . | . . . . . . . . . . . . . . . . Parts Stolen . | . . . . . . . . . . . . . . . . Parts Stripped . | . . . . . . . . . . . . . . . . Power Chain Reactions 5 | . 1 . . . . . 2 1 . 1 . . . . . Missiles Intercepted . | . . . . . . . . . . . . . . . . Alert | -11 -10 -10 -10 -9 -8 -7 -7 -7 -7 -6 -6 -6 -6 -6 -6 ------- Run | Scr Mat Min Exi Min Mat Fac Low Low Dat Pro Fac Low Low Zio Dee Peak Influence 359 | . 359 80 . 185 275 281 . . . . 178 . . . . Initial 114 | . . 48 . . 72 114 . . . . 12 . . . . Average 149 | . 229 21 . 175 176 124 . . . . 79 . . . . Maximum Alert Level 1 | . 1 . . . 1 1 . . . . . . . . . Low Security (%) 68 | 100 32 100 . 100 55 86 . . . . 100 . . . . Level 1 31 | . 67 . . . 44 13 . . . . . . . . . Level 2 . | . . . . . . . . . . . . . . . . Level 3 . | . . . . . . . . . . . . . . . . Level 4 . | . . . . . . . . . . . . . . . . Level 5 . | . . . . . . . . . . . . . . . . High Security . | . . . . . . . . . . . . . . . . Max Security . | . . . . . . . . . . . . . . . . Squads Dispatched 14 | . 2 1 . . . 6 . . . . 5 . . . . Investigation 2 | . . 1 . . . 1 . . . . . . . . . Extermination 1 | . . . . . . 1 . . . . . . . . . Reinforcement 11 | . 2 . . . . 4 . . . . 5 . . . . Assault . | . . . . . . . . . . . . . . . . Garrison . | . . . . . . . . . . . . . . . . Intercept . | . . . . . . . . . . . . . . . . Construction Impeded . | . . . . . . . . . . . . . . . . Haulers Reinforced . | . . . . . . . . . . . . . . . . Stealth | -11 -10 -10 -10 -9 -8 -7 -7 -7 -7 -6 -6 -6 -6 -6 -6 --------- Run | Scr Mat Min Exi Min Mat Fac Low Low Dat Pro Fac Low Low Zio Dee Distress Signals 6 | . 1 . . . 4 1 . . . . . . . . . Communications Jammed . | . . . . . . . . . . . . . . . . Distress Signals . | . . . . . . . . . . . . . . . . Times Spotted 123 | . 26 13 . 1 21 31 5 4 . 5 10 . 4 . 3 Peak Tracking Total 6 | . 6 6 . 3 6 6 3 4 . 2 2 . 4 . 3 Tactical Retreats 19 | . 1 1 . . 4 8 1 1 . 2 1 . . . . Traps | -11 -10 -10 -10 -9 -8 -7 -7 -7 -7 -6 -6 -6 -6 -6 -6 ------- Run | Scr Mat Min Exi Min Mat Fac Low Low Dat Pro Fac Low Low Zio Dee Traps Triggered 6 | . 2 . . . 2 1 . . . . 1 . . . . Indirectly . | . . . . . . . . . . . . . . . . Trap Hack Attempts . | . . . . . . . . . . . . . . . . Triggered . | . . . . . . . . . . . . . . . . Disarmed . | . . . . . . . . . . . . . . . . Reprogrammed . | . . . . . . . . . . . . . . . . Reused . | . . . . . . . . . . . . . . . . Traps Extracted . | . . . . . . . . . . . . . . . . Installed 1 | . . . . . . . . . 1 . . . . . . Triggered 5 | . . . . . . 1 2 . . 2 . . . . . Machines | -11 -10 -10 -10 -9 -8 -7 -7 -7 -7 -6 -6 -6 -6 -6 -6 ---------- Run | Scr Mat Min Exi Min Mat Fac Low Low Dat Pro Fac Low Low Zio Dee Machines Disabled 9 | . 5 1 . 1 . . . . . . 1 . . 1 . Max in Single Turn 4 | . 4 1 . 1 . . . . . . 1 . . 1 . Machines Sabotaged . | . . . . . . . . . . . . . . . . Garrisons Compromised . | . . . . . . . . . . . . . . . . Overloaded Fab Kills . | . . . . . . . . . . . . . . . . Fab Network Shutdowns . | . . . . . . . . . . . . . . . . Hacking | -11 -10 -10 -10 -9 -8 -7 -7 -7 -7 -6 -6 -6 -6 -6 -6 --------- Run | Scr Mat Min Exi Min Mat Fac Low Low Dat Pro Fac Low Low Zio Dee Machines Accessed 19 | . 5 1 2 . 2 3 . . 4 . . 1 . 1 . Terminals 7 | . 4 . . . 1 2 . . . . . . . . . Fabricators . | . . . . . . . . . . . . . . . . Repair Stations . | . . . . . . . . . . . . . . . . Recycling Units 1 | . 1 . . . . . . . . . . . . . . Scanalyzers 1 | . . . . . 1 . . . . . . . . . . Garrison Access 1 | . . . . . . 1 . . . . . . . . . Total Hacks 58 | . 13 1 2 . 5 6 . . 27 . . 1 . 3 . Successful 42 | . 5 1 2 . 2 1 . . 27 . . 1 . 3 . Failed 16 | . 8 . . . 3 5 . . . . . . . . . Catastrophic 4 | . 1 . . . 1 2 . . . . . . . . . Database Lockouts . | . . . . . . . . . . . . . . . . Manual 10 | . 3 . 1 . 3 3 . . . . . . . . . Terminals 14 | . 8 . . . 3 3 . . . . . . . . . Fabricators . | . . . . . . . . . . . . . . . . Repair Stations . | . . . . . . . . . . . . . . . . Recycling Units 5 | . 5 . . . . . . . . . . . . . . Scanalyzers 2 | . . . . . 2 . . . . . . . . . . Garrison Access 3 | . . . . . . 3 . . . . . . . . . Terminal Hacks 37 | . 2 1 2 . . 1 . . 27 . . 1 . 3 . Record 12 | . . . 1 . . . . . 11 . . . . . . Part Schematic 11 | . . . . . . . . . 8 . . . . 3 . Robot Schematic 5 | . . . . . . . . . 5 . . . . . . Robot Analysis 1 | . 1 . . . . . . . . . . . . . . Prototype ID Bank 3 | . . . . . . . . . 3 . . . . . . Open Door 2 | . . 1 . . . . . . . . . 1 . . . Branch Access Points 1 | . . . . . . 1 . . . . . . . . . Hauler Manifests 1 | . 1 . . . . . . . . . . . . . . EX-Prototype ID Bank 1 | . . . 1 . . . . . . . . . . . . Fabricator Hacks . | . . . . . . . . . . . . . . . . Repair Station Hacks . | . . . . . . . . . . . . . . . . Recycling Unit Hacks 2 | . 2 . . . . . . . . . . . . . . Retrieve Matter 2 | . 2 . . . . . . . . . . . . . . Scanalyzer 2 | . . . . . 2 . . . . . . . . . . Insert Component 1 | . . . . . 1 . . . . . . . . . . Analyze 1 | . . . . . 1 . . . . . . . . . . Garrison Access Hacks . | . . . . . . . . . . . . . . . . Unauthorized Hacks 1 | . 1 . . . . . . . . . . . . . . Terminals 1 | . 1 . . . . . . . . . . . . . . Track 1 | . 1 . . . . . . . . . . . . . . Fabricators . | . . . . . . . . . . . . . . . . Repair Stations . | . . . . . . . . . . . . . . . . Recycling Units . | . . . . . . . . . . . . . . . . Scanalyzers . | . . . . . . . . . . . . . . . . Garrison Access . | . . . . . . . . . . . . . . . . Data Cores Recovered . | . . . . . . . . . . . . . . . . Used . | . . . . . . . . . . . . . . . . Hacking Detections 8 | . 4 . . . 1 3 . . . . . . . . . Full Trace Events 1 | . . . . . . 1 . . . . . . . . . Feedback Events . | . . . . . . . . . . . . . . . . Feedback Blocked . | . . . . . . . . . . . . . . . . Robot Schematics Acquired 5 | . . . . . . . . . 5 . . . . . . Robots Built . | . . . . . . . . . . . . . . . . Matter . | . . . . . . . . . . . . . . . . Time . | . . . . . . . . . . . . . . . . Total Robot Build Rating . | . . . . . . . . . . . . . . . . Part Schematics Acquired 12 | . . . . . 1 . . . 8 . . . . 3 . Parts Built . | . . . . . . . . . . . . . . . . Matter . | . . . . . . . . . . . . . . . . Time . | . . . . . . . . . . . . . . . . Total Part Build Rating . | . . . . . . . . . . . . . . . . Parts Repaired . | . . . . . . . . . . . . . . . . Time . | . . . . . . . . . . . . . . . . Parts Recycled . | . . . . . . . . . . . . . . . . Recycled Matter . | . . . . . . . . . . . . . . . . Retrieved Matter . | . . . . . . . . . . . . . . . . Retrieved Components . | . . . . . . . . . . . . . . . . Parts Scanalyzed 1 | . . . . . 1 . . . . . . . . . . Part Schematics Acquired 1 | . . . . . 1 . . . . . . . . . . Parts Damaged . | . . . . . . . . . . . . . . . . Bothacking | -11 -10 -10 -10 -9 -8 -7 -7 -7 -7 -6 -6 -6 -6 -6 -6 ------------ Run | Scr Mat Min Exi Min Mat Fac Low Low Dat Pro Fac Low Low Zio Dee Used RIF Installer . | . . . . . . . . . . . . . . . . Robots Hacked . | . . . . . . . . . . . . . . . . Non-combat . | . . . . . . . . . . . . . . . . Combat . | . . . . . . . . . . . . . . . . Robot Hacks Applied . | . . . . . . . . . . . . . . . . Relay Couplers Released . | . . . . . . . . . . . . . . . . Robots Rewired . | . . . . . . . . . . . . . . . . Allies Hacked . | . . . . . . . . . . . . . . . . Hacks Repelled . | . . . . . . . . . . . . . . . . Allies | -11 -10 -10 -10 -9 -8 -7 -7 -7 -7 -6 -6 -6 -6 -6 -6 -------- Run | Scr Mat Min Exi Min Mat Fac Low Low Dat Pro Fac Low Low Zio Dee Total Allies 5 | . . 3 . . . . . . 1 . . . . . 1 Largest Group 3 | . . 3 . . . . . . 1 1 . . . . 1 Highest-Rated Group 70 | . . 40 . . . . . . 59 59 . . . . 70 Highest-Rated Ally 70 | . . 16 . . . . . . 59 59 . . . . 70 Total Orders 1 | . . . . . . . . . . 1 . . . . . STAY 1 | . . . . . . . . . . 1 . . . . . Ally Attacks 26 | . . 22 . . . . . . . . . . . . 4 Total Damage 225 | . . 166 . . . . . . . . . . . . 59 Kills 2 | . . 2 . . . . . . . . . . . . . Allies Corrupted 1 | . . 1 . . . . . . . . . . . . . Allies Melted . | . . . . . . . . . . . . . . . . Field Lobotomies 2 | . . . . . . . . . 1 . . . . . 1 Intel | -11 -10 -10 -10 -9 -8 -7 -7 -7 -7 -6 -6 -6 -6 -6 -6 ------- Run | Scr Mat Min Exi Min Mat Fac Low Low Dat Pro Fac Low Low Zio Dee Robot Analysis Total 116 | . 1 . . . . . . . 115 . . . . . . Derelict Logs Recovered 6 | . . 1 . . . . 1 1 . 1 . 1 . 1 . Drone Launches . | . . . . . . . . . . . . . . . . Drone Recoveries . | . . . . . . . . . . . . . . . . Exploration | -11 -10 -10 -10 -9 -8 -7 -7 -7 -7 -6 -6 -6 -6 -6 -6 ------------- Run | Scr Mat Min Exi Min Mat Fac Low Low Dat Pro Fac Low Low Zio Dee Turns Passed 10252 | 80 1321 479 628 79 1188 1526 658 536 199 564 451 480 654 1186 223 Spaces Moved 5447 | 46 732 275 390 42 546 700 375 292 108 284 219 305 385 680 68 Core 4 | 4 . . . . . . . . . . . . . . . Treads 5443 | 42 732 275 390 42 546 700 375 292 108 284 219 305 385 680 68 Legs . | . . . . . . . . . . . . . . . . Wheels . | . . . . . . . . . . . . . . . . Hover . | . . . . . . . . . . . . . . . . Flight . | . . . . . . . . . . . . . . . . Fastest Speed 50 | 50 160 160 160 160 160 148 157 157 177 177 155 155 155 170 170 Average Speed 165 | 150 160 160 160 160 176 163 158 176 177 177 173 155 163 170 170 Slowest Speed 190 | 160 160 160 160 160 180 190 163 177 177 177 177 155 170 170 172 Overloaded Moves . | . . . . . . . . . . . . . . . . Propulsion Burnouts . | . . . . . . . . . . . . . . . . Robots Hopped . | . . . . . . . . . . . . . . . . Cave-ins Triggered . | . . . . . . . . . . . . . . . . Exploration Rate (%) 49 | 5 98 68 70 9 50 24 61 49 75 60 11 55 59 84 20 Regions Visited 15 Branch Regions 11 Pre-discovered Areas 32 | . . . 1 . . . . . 27 . . . . 4 . Known Exits Taken 4 | . . . . . . 1 . . . . 1 1 . 1 . Unknown Exits Taken 11 | 1 1 1 1 1 1 . 1 1 1 1 . . 1 . . Scrap Searched 13 | . . . . 2 . . 1 2 . . . 3 2 3 . Spaces Dug 54 | . 2 8 . 10 . 23 . 5 . . 2 2 . 2 . Terrain Destroyed 334 | . 93 81 . 66 41 33 6 5 . . 2 2 . 2 3 Melee 31 | . 2 . . . . 23 . . . . 2 2 . 2 . Projectile 3 | . . . . . . . . . . . . . . . 3 AOE 300 | . 91 81 . 66 41 10 6 5 . . . . . . . Terrain Rammed . | . . . . . . . . . . . . . . . . Walls Destroyed . | . . . . . . . . . . . . . . . . Machines Disabled . | . . . . . . . . . . . . . . . . Actions | -11 -10 -10 -10 -9 -8 -7 -7 -7 -7 -6 -6 -6 -6 -6 -6 --------- Run | Scr Mat Min Exi Min Mat Fac Low Low Dat Pro Fac Low Low Zio Dee Total 6232 | 53 812 295 395 47 713 960 409 305 115 320 262 312 402 699 133 Wait 285 | . 10 . . . 77 133 6 1 . 10 17 . 12 . 19 Move 5432 | 45 731 274 389 41 545 699 374 291 107 283 218 304 384 679 68 Hop . | . . . . . . . . . . . . . . . . Pick Up 41 | 1 11 . 2 . 9 5 1 2 . 1 3 3 . 3 . Fast Attach 30 | 6 3 . 1 . 6 8 . 1 . . 3 1 . 1 . Attach 27 | . 2 . . . 4 2 5 1 2 . 2 . . . 9 Detach 8 | . . . . . . . . . 2 1 . 1 . . 4 Swap 66 | 1 4 3 1 . 16 14 2 2 1 2 8 . . 5 7 Drop 44 | . 5 2 2 . 12 17 . . 1 . . 1 . 4 . Fire 157 | . 39 13 . 6 11 27 5 7 1 23 9 . . . 16 Melee 138 | . 7 3 . . 33 54 14 . . . 2 2 6 7 10 Ram . | . . . . . . . . . . . . . . . . Kick . | . . . . . . . . . . . . . . . . Crush 3 | . . . . . . 1 2 . . . . . . . . Escape Stasis . | . . . . . . . . . . . . . . . . Rewire . | . . . . . . . . . . . . . . . . Trap 1 | . . . . . . . . . 1 . . . . . . Miscellaneous . | . . . . . . . . . . . . . . . . Route ------- -11/Scrapyard -10/Materials (discovered 4 exits: [*Mat x3] / *Min) -10/Mines (discovered 2 exits: [*Mat] / *Exi) -10/Exiles -9/Mines -8/Materials -7/Factory (discovered 4 exits: [*Fac] / Sto / *Low x2) -7/Lower Caves -7/Lower Caves -7/Data Miner -6/Proximity Caves -6/Factory -6/Lower Caves -6/Lower Caves -6/Zion (discovered 2 exits: *Dee / [*Pro]) -6/Deep Caves History --------- Turn | Location | Event 8 | -11/Scrapyard | Discovered new exit (range 16) 81 | -11/Scrapyard | Entered Materials 248 | -10/Materials | Discovered new exit (range 10) 303 | -10/Materials | Build established: Mutant 463 | -10/Materials | Discovered new exit (range 16) 627 | -10/Materials | Discovered new exit (range 8) 730 | -10/Materials | Discovered new exit (range 4) 1402 | -10/Materials | Entered Mines 1469 | -10/Mines | A weapon hastily lodged in a ceiling crevice suddenly fell to the ground 1499 | -10/Mines | Learned Materials emergency access door positions 1503 | -10/Mines | Assembled infested the area 1508 | -10/Mines | Assisted by a Guerilla fighting off Assembled 1513 | -10/Mines | Assisted by bots powering up and referring to "LRC-V3" 1556 | -10/Mines | Discovered new exit (range 12) 1737 | -10/Mines | Met a Derelict shopkeep closing up shop 1873 | -10/Mines | Deemed a non-threat by the Exiles lab entrance 1875 | -10/Mines | Discovered new exit (range 5) 1881 | -10/Mines | Entered Exiles 1921 | -10/Exiles | Met 8R-AWN 1944 | -10/Exiles | Met EX-HEX 2033 | -10/Exiles | Met EX-DEC 2237 | -10/Exiles | Met EX-BIN 2259 | -10/Exiles | Aligned with FarCom system 2261 | -10/Exiles | Given EX-Vault access code 2301 | -10/Exiles | Opened EX-Vault 2317 | -10/Exiles | Found Field Lobotomy Kit 2352 | -10/Exiles | Warned to stay clear of 0b10 Research branches 2406 | -10/Exiles | Learned location of Zion (-6) 2492 | -10/Exiles | Discovered new exit (range 12) 2509 | -10/Exiles | Left Exiles lab with Field Lobotomy Kit 2509 | -10/Exiles | Entered Mines 2512 | -9/Mines | Discovered new exit (range 11) 2545 | -9/Mines | Destroyed 7 combat bots 2588 | -9/Mines | Entered Materials 2588 | -8/Materials | Evolved 4 slots: Propulsion x1, Utility x3 3747 | -8/Materials | Discovered new exit (range 11) 3776 | -8/Materials | Entered Factory 3776 | -7/Factory | Evolved 2 slots: Propulsion x1, Utility x1 5100 | -7/Factory | Identified exit to Storage 5100 | -7/Factory | Identified exit to Lower Caves 5294 | -7/Factory | Discovered new exit (range 15) 5302 | -7/Factory | Entered Lower Caves 5313 | -7/Lower Caves | Lost 4 parts (1n2u1w) 5321 | -7/Lower Caves | Learned Factory emergency access door positions 5941 | -7/Lower Caves | Discovered new exit (range 10) 5960 | -7/Lower Caves | Entered another Lower Caves area 6188 | -7/Lower Caves | Encountered a Warlord checkpoint 6299 | -7/Lower Caves | Build established: Hauler-Mutant 6369 | -7/Lower Caves | Discovered new exit (range 10) 6496 | -7/Lower Caves | Entered Data Miner 6496 | -7/Data Miner | Discovered new exit (range 6) 6530 | -7/Data Miner | Met Data Miner 6579 | -7/Data Miner | Learned location of Section 7 (-2) 6579 | -7/Data Miner | Acquired the access code to Warlord's prototype stash 6610 | -7/Data Miner | Received God Mode back door access code from Data Miner 6634 | -7/Data Miner | Assimilated Data Miner with FLK Orb 6637 | -7/Data Miner | Interfaced with the Data Conduit 6695 | -7/Data Miner | Entered Proximity Caves 6695 | -6/Proximity Caves | Accompanied by 1 ally (Data Miner) 6736 | -6/Proximity Caves | Destroyed Data Miner 6741 | -6/Proximity Caves | Found Prototype Hackware 7234 | -6/Proximity Caves | Discovered new exit (range 13) 7259 | -6/Proximity Caves | Entered Factory 7259 | -6/Factory | Evolved 2 slots: Utility x1, Weapon x1 7260 | -6/Factory | Identified exit to Lower Caves 7262 | -6/Factory | Loaded intel: 249 machine locations 7578 | -6/Factory | Build established: Hauler-Tank 7710 | -6/Factory | Entered Lower Caves 7912 | -6/Lower Caves | Identified exit to Lower Caves 7974 | -6/Lower Caves | Build established: Hauler-Mutant 8190 | -6/Lower Caves | Entered another Lower Caves area 8300 | -6/Lower Caves | Encountered a Warlord checkpoint 8802 | -6/Lower Caves | Discovered new exit (range 10) 8844 | -6/Lower Caves | Entered Zion 9043 | -6/Zion | Discovered new exit (range 16) 9134 | -6/Zion | System corruption cleaned by Quarantine Array 9501 | -6/Zion | Found Prototype Device 9507 | -6/Zion | Identified Mobile Refinery Mk. CCLXVII 9906 | -6/Zion | Identified exit to Deep Caves 10021 | -6/Zion | Saw the warning signs outside the Deep Caves entrance 10030 | -6/Zion | Entered Deep Caves 10156 | -6/Deep Caves | Attacked by Z-Imprinter 10215 | -6/Deep Caves | Core integrity fell below 50% 10235 | -6/Deep Caves | Core integrity fell below 20% 10245 | -6/Deep Caves | Assimilated BM-159(z) with FLK Orb 10253 | -6/Deep Caves | Destroyed by Z-Imprinter with Zionite Laser-M Last Messages --------------- 10185_ Adv. Treads destroyed. 10186_ Lyr. Light Armor Plating destroyed. 10188_ Overheating: Lyr. Light Armor Plating damaged (-67). 10188_ Lyr. Light Armor Plating destroyed. 10191_ Adv. Treads destroyed. 10192_ Overheating: Energy bleed (-22). 10194_ Power failure, Mic. Nuclear Core shutdown. 10197_ Lyr. Light Armor Plating destroyed. 10198_ Mic. Nuclear Core destroyed. 10199_ Lyr. Light Armor Plating destroyed. 10201_ Imp. Medium Treads destroyed. 10202_ Overheating: Matter decay (-29). 10215_ Z-Imprinter knocked back. 10217_ Impact Mace destroyed. 10227_ Humpback destroyed. 10230_ Wave Gun destroyed. 10245_ BM-159(z) assimilated. 10248_ Z-Imprinter unaffected by assimilation attempt. 10251_ Field Lobotomy Kit expended. 10251_ Z-Imprinter unaffected by assimilation attempt. Map ----- +----------------------------------------------------+ | | | | | | | | | | | | | | | ?????????????????????????????????????????????????? | | ?????????????????????????????????????????????????? | | ?????????????????????????????????????????????????? | | ?????????????????????????????????????????????????# | | ??????????????????????#####?????????????????????# | | ??????????????????##### #???????????????????? | | ????????????????###;# ???????????????????? | | ?????????????? ???????????????????? | | ????????????? ???????????????????# | | ???????????? #???????????????????# | | ??????????? #??????##??????????## | | ?????????? ##???? ??????????## | | ???????? ####;############# | | ?????? | | ???? | | ??? !! | | ???" z *%= ######### ## | | ???" !;##???????# #### | | ???" @ I#?????????#####?## | | ??"" ; #???????????#### | | ? " ###??????????## | | ? #???????????# | | ;???????????# | | ##?????????## # | | ;;??????????# ## | | "" ##?????????## ##? | | ??"" #?????????# ##?? | | #?????????# #??? | | ?"" ##?????????## ##??? | | ?""" ##???????????## ###???? | | ??""" #?????????????# #?????? | | ???"" #????????????# #?????? | | ???"" #???????????# #?????? | | ???" #???????????# #?????? | | ??" ##???????????# #?????? | | ?? #????????????# #?????? | | ???" #????????????# ##????? | | ??? ????????????# #????? | | ????? ??????????????# #????? | | ??????? ????????????????# ##????? | | ?????????? ???????????????????####?????? | | ???????????? ??????????????????????????????? | | ?????????????????????????????????????????????????? | +----------------------------------------------------+ Best States ------------- Heat Dissipation 56 Energy Generation 15 Energy Capacity 250 Matter Stores 300 Matter Capacity 300 Sight Range 16 Robot Scan Range 16 Terrain Scan Density 10 Armor Coverage 675 Resistance: EM 15 Evasion (%) 40 Armor Integrity Analysis 33 Recoil Reduction 4 Salvage Targeting 2 Item Schematics ----------------- Humpback | -8/Materials | Scanalyzed Combat Drone Bay | -7/Data Miner | Free Lgt. Regenerative Plating | -7/Data Miner | Free Exp. Sensor Array | -7/Data Miner | Free Exp. Terrain Scanner | -7/Data Miner | Free Exp. Terrain Scan Processor | -7/Data Miner | Free Exp. Targeting Computer | -7/Data Miner | Free Exp. ECM Suite | -7/Data Miner | Free Cloaking Device | -7/Data Miner | Free Beamcaster | -6/Zion | Free Flamer | -6/Zion | Free Ripper | -6/Zion | Free Robot Schematics ------------------ G-50 Soldier | -7/Data Miner | Free S-27 Virus | -7/Data Miner | Free P-70 Sage | -7/Data Miner | Free I-36 Angel | -7/Data Miner | Free I-47 Archangel | -7/Data Miner | Free Fabricated ------------ Nothing Alien Tech Used ----------------- None Achievements -------------- None Challenges ------------ None Game ------ Seed BiocellFactorySheargun Manual? 0 Play Time 00:52:38 Cumulative 189.6 hours Start 2021.06.07 @ 21:49:07 End 2021.06.07 @ 22:39:32 Sessions 1 Manual Loads 0 Difficulty Rogue Special Mode None Game No. 239 Rogue 152 Adventurer 87 Explorer 0 Win Type - Total 4 Types 3/0/0/1/0/0/0/0/0 Lore% 67 Gallery% 74 Achievement% 61 Wizard Run 0 Options --------- ASCII 0 Keyboard 1 Movement Numpad Keybinds 0 Fullscreen 1 Font 18/Smallcaps Map View 76x50 Tactical HUD 1 Map Filters NONE Filters NONE Steam 1 RUN: 64515dce-31b7-480f-9fdc-dc444ff6ef5c